[Event "LEM Niedersachsen-A-Open 2025"]
[Site "Verden"]
[Date "2025.01.02"]
[Round "1.9"]
[White "Becker, Stefan"]
[Black "Goertzen, Simon"]
[Result "1-0"]
[ECO "A11"]
[WhiteElo "2036"]
[BlackElo "1887"]
[Annotator "RC"]
[PlyCount "53"]
[EventDate "2024.12.27"]
[EventType "swiss"]
[EventCountry "GER"]
[SourceTitle "playchess.com"]
[Source "ChessBase"]
[SourceQuality "1"]
[TimeControl "40/5400+30:1800+30"]

1. Nf3 {[%emt 0:00:06]} Nf6 {[%emt 0:00:06]} 2. g3 {[%emt 0:00:11]} d5 {[%emt 0:00:50]} 3. Bg2 {[%emt 0:00:15]} Bf5 {[%emt 0:06:40]} 4. O-O {[%emt 0:01:24]} e6 {[%emt 0:00:22]} 5. c4 {[%emt 0:00:11]} c6 {[%emt 0:00:17]} 6. cxd5 {[%emt 0:04:06]} cxd5 {[%emt 0:01:11]} 7. d3 {[%emt 0:00:17]} Be7 {[%emt 0:04:29]} 8. Qb3 {[%emt 0:00:42]} b6 {[%emt 0:10:00]} 9. Nc3 {[%emt 0:09:37]} O-O {[%emt 0:01:35]} 10. e4 {[%emt 0:04:42]} dxe4 {[%emt 0:11:56]} 11. Ne5 {[%emt 0:00:35]} Nbd7 {[%emt 0:12:43]} 12. Nc6 {[%emt 0:11:25]} Qe8 {[%emt 0:06:01]} 13. dxe4 {[%emt 0:04:56]} Nxe4 {[%emt 0:02:09]} 14. Nxe7+ {[%emt 0:02:50]} Qxe7 {[%emt 0:00:28]} 15. Nxe4 {[%emt 0:00:13]} Bxe4 {[%emt 0:03:06]} 16. Bxe4 {[%emt 0:00:09]} Nc5 {[%emt 0:00:31]} 17. Qa3 {[%emt 0:00:55]} Rad8 {[%emt 0:01:34]} 18. Be3 {[%emt 0:01:09]} f5 {[%emt 0:01:37]} 19. Bxc5 {[%emt 0:00:37]} bxc5 {[%emt 0:00:12]} 20. Bg2 {[%emt 0:01:13]} Rd2 {[%emt 0:02:29]} 21. Rad1 {[%emt 0:06:53]} Rfd8 {[%emt 0:00:21]} 22. Bf3 {[%emt 0:01:19]} e5 {[%emt 0:02:35]} 23. Rxd2 {[%emt 0:00:19]} Rxd2 {[%emt 0:00:09]} 24. Rd1 {[%emt 0:00:26]} e4 {[%emt 0:02:06]} 25. Qb3+ {[%emt 0:02:38]} Kf8 {[%emt 0:02:02]} 26. Rxd2 {[%emt 0:00:16]} exf3 {[%emt 0:00:47]} 27. Qe3 {[%emt 0:00:21]} 1-0

[Event "LEM Niedersachsen-A-Open 2025"]
[Site "Verden"]
[Date "2025.01.02"]
[Round "1.10"]
[White "Bisa, Gani"]
[Black "Hoellman, Ludger"]
[Result "0-1"]
[ECO "D38"]
[WhiteElo "1885"]
[BlackElo "2026"]
[Annotator "NA RC"]
[PlyCount "122"]
[EventDate "2024.12.27"]
[EventType "swiss"]
[EventCountry "GER"]
[SourceTitle "playchess.com"]
[Source "ChessBase"]
[SourceQuality "1"]
[TimeControl "40/5400+30:1800+30"]

1. d4 {[%emt 0:00:07]} Nf6 {[%emt 0:00:15]} 2. c4 {[%emt 0:00:08]} e6 {[%emt 0:00:20]} 3. Nc3 {[%emt 0:00:23]} Bb4 {[%emt 0:00:35]} 4. Qc2 {[%emt 0:00:38]} O-O {[%emt 0:01:03]} 5. Nf3 {[%emt 0:00:50]} d5 {[%emt 0:04:49]} 6. Bg5 {[%emt 0:03:08]} h6 {[%emt 0:00:54]} 7. Bxf6 {[%emt 0:02:23]} Qxf6 {[%emt 0:00:03]} 8. e3 {[%emt 0:00:23]} Nd7 {[%emt 0:02:15] D38: Queen's Gambit Declined: Ragozin Defence (4 Nf3 Bb4).} 9. Be2 {[%emt 0:01:27]} dxc4 {[%emt 0:04:53]} 10. Bxc4 {[%emt 0:01:57]} e5 {[%emt 0:01:38]} 11. O-O {[%emt 0:02:22]} c6 {[%emt 0:00:50]} 12. Ne4 {[%emt 0:03:02]} Qe7 {[%emt 0:02:50]} 13. a3 {[%emt 0:00:40]} Ba5 {[%emt 0:03:19]} 14. Rad1 {[%emt 0:02:46]} exd4 {[%emt 0:00:45]} 15. Rxd4 {[%emt 0:04:53]} Bb6 {[%emt 0:05:00]} 16. Rd2 {[%emt 0:02:28]} Nf6 {[%emt 0:01:11]} 17. Nd6 {[%emt 0:04:04]} Bg4 {[%emt 0:04:13]} 18. Nh4 {[%emt 0:02:39]} Nd5 {[%emt 0:15:26]} 19. Nhf5 {[%emt 0:06:13]} Qg5 {[%emt 0:17:24]} 20. Bxd5 {[%emt 0:03:01]} cxd5 {[%emt 0:00:52]} 21. h4 {[%emt 0:02:11]} Qf6 {[%emt 0:02:53]} 22. Rxd5 {[%emt 0:00:43]} Bxf5 {[%emt 0:01:51]} 23. Nxf5 {[%emt 0:01:54]} Rac8 {[%emt 0:01:24]} 24. Qe4 {[%emt 0:02:16]} Rfe8 {[%emt 0:03:24]} 25. Qg4 {[%emt 0:00:35]} Rc5 {[%emt 0:03:11]} 26. Rfd1 {[%emt 0:01:51]} Kh7 {[%emt 0:01:12]} 27. b4 {[%emt 0:01:27]} Rxd5 {[%emt 0:01:30]} 28. Rxd5 {[%emt 0:00:34]} Re5 {[%emt 0:01:17]} 29. Rxe5 {[%emt 0:07:21]} Qxe5 {[%emt 0:00:02]} 30. Qf3 {[%emt 0:00:41]} Qa1+ {[%emt 0:08:33]} 31. Kh2 {[%emt 0:00:09]} Qxa3 {[%emt 0:00:43]} 32. Qxb7 {[%emt 0:07:19]} Qa2 {[%emt 0:01:37]} 33. Qf3 {[%emt 0:02:29]} Qc4 {[%emt 0:00:29]} 34. h5 {[%emt 0:03:57]} Qxb4 {[%emt 0:01:19]} 35. Qd5 {[%emt 0:04:21]} Qf8 {[%emt 0:02:47]} 36. g3 {[%emt 0:01:01]} Kg8 {[%emt 0:01:33]} 37. Qe5 {[%emt 0:02:50]} Bd8 {[%emt 0:01:59]} 38. Qd5 {[%emt 0:01:29]} Bb6 {[%emt 0:02:00]} 39. Kg2 {[%emt 0:00:24]} Qe8 {[%emt 0:00:41]} 40. Nd6 {[%emt 0:00:35]} Qe6 {[%emt 0:01:54]} 41. Qa8+ {[%emt 0:31:50]} Kh7 {[%emt 0:31:19]} 42. Qc6 {[%emt 0:03:01]} Bd8 {[%emt 0:00:00]} 43. Qc2+ {[%emt 0:00:00]} Kg8 {[%emt 0:00:00]} 44. Qd3 {[%emt 0:00:00]} Bc7 {[%emt 0:00:00]} 45. Nf5 {[%emt 0:00:00]} a5 {[%emt 0:00:00]} 46. e4 {[%emt 0:00:00]} Kh7 {[%emt 0:00:00]} 47. f4 {[%emt 0:00:00]} g6 {[%emt 0:00:00]} 48. hxg6+ {[%emt 0:00:00]} fxg6 {[%emt 0:00:00]} 49. Nh4 {[%emt 0:00:00]} a4 {[%emt 0:00:00]} 50. Qc2 {[%emt 0:00:00]} Bxf4 {[%emt 0:00:00]} 51. Qxa4 {[%emt 0:00:00]} Be5 {[%emt 0:00:00]} 52. Nf3 {[%emt 0:00:00]} Bg7 {[%emt 0:00:00]} 53. Qa8 {[%emt 0:00:00]} Qc4 {[%emt 0:00:00]} 54. Nh4 {[%emt 0:00:00]} Qe2+ {[%emt 0:00:00]} 55. Kh3 {[%emt 0:00:00]} Qf1+ {[%emt 0:00:00]} 56. Kh2 {[%emt 0:00:00]} Qf2+ {[%emt 0:00:00]} 57. Ng2 {[%emt 0:00:00]} h5 {[%emt 0:00:36]} 58. Qd5 {[%emt 0:00:00]} Bd4 {[%emt 0:04:32]} 59. g4 {[%emt 0:00:00]} Qg1+ {[%emt 0:01:10]} ({Less strong is} 59... hxg4 60. Qd7+ Bg7 61. Qxg4 $15) 60. Kg3 {[%emt 0:00:00] [#]} h4+ {[%emt 0:01:29]} 61. Kf4 {[%emt 0:06:07]} Qf2+ {[%emt 0:00:59]} 0-1

[Event "LEM Niedersachsen-A-Open 2025"]
[Site "Verden"]
[Date "2025.01.02"]
[Round "1.11"]
[White "Koch, Yannick"]
[Black "Harms, Friedjof"]
[Result "1-0"]
[ECO "A57"]
[WhiteElo "2024"]
[BlackElo "1884"]
[Annotator "RC"]
[PlyCount "51"]
[EventDate "2024.12.27"]
[EventType "swiss"]
[EventCountry "GER"]
[SourceTitle "playchess.com"]
[Source "ChessBase"]
[SourceQuality "1"]
[TimeControl "40/5400+30:1800+30"]

1. d4 {[%emt 0:00:08]} Nf6 {[%emt 0:00:04]} 2. c4 {[%emt 0:00:50]} c5 {[%emt 0:00:06]} 3. d5 {[%emt 0:00:38]} b5 {[%emt 0:00:05]} 4. cxb5 {[%emt 0:00:16]} a6 {[%emt 0:00:05]} 5. b6 {[%emt 0:00:37]} Qxb6 {[%emt 0:00:12]} 6. Nc3 {[%emt 0:00:59]} d6 {[%emt 0:00:42]} 7. Nf3 {[%emt 0:01:41]} g6 {[%emt 0:01:15]} 8. e4 {[%emt 0:02:04]} Nbd7 {[%emt 0:00:41]} 9. Nd2 {[%emt 0:00:44]} Bg7 {[%emt 0:01:12]} 10. Be2 {[%emt 0:01:26]} O-O {[%emt 0:03:13]} 11. Nc4 {[%emt 0:00:22]} Qc7 {[%emt 0:01:14]} 12. Bf4 {[%emt 0:00:37]} Nb6 {[%emt 0:02:47]} 13. Ne3 {[%emt 0:01:35]} Nfd7 {[%emt 0:08:59]} 14. h4 {[%emt 0:03:16]} a5 {[%emt 0:08:15]} 15. h5 {[%emt 0:01:49]} Ne5 {[%emt 0:02:20]} 16. hxg6 {[%emt 0:12:05]} hxg6 {[%emt 0:05:58]} 17. Qd2 {[%emt 0:18:03]} a4 {[%emt 0:08:03]} 18. Bh6 {[%emt 0:01:25]} Bxh6 {[%emt 0:07:48]} 19. Rxh6 {[%emt 0:00:08]} Kg7 {[%emt 0:01:34]} 20. O-O-O {[%emt 0:02:10]} Bb7 {[%emt 0:03:37]} 21. Rdh1 {[%emt 0:09:33]} Rh8 {[%emt 0:06:23]} 22. Nf5+ {[%emt 0:07:29]} gxf5 {[%emt 0:01:12]} 23. Qg5+ {[%emt 0:00:09]} Ng6 {[%emt 0:00:17]} 24. exf5 {[%emt 0:00:22]} Rxh6 {[%emt 0:08:17]} 25. Qxh6+ {[%emt 0:00:44]} Kg8 {[%emt 0:00:57]} 26. fxg6 {[%emt 0:00:57]} 1-0

[Event "LEM Niedersachsen-A-Open 2025"]
[Site "Verden"]
[Date "2025.01.02"]
[Round "1.12"]
[White "Burnus, Finn Crispin"]
[Black "Kiesel, Lucas"]
[Result "1-0"]
[ECO "E60"]
[WhiteElo "1883"]
[BlackElo "2023"]
[Annotator "RC"]
[PlyCount "145"]
[EventDate "2024.12.27"]
[EventType "swiss"]
[EventCountry "GER"]
[SourceTitle "playchess.com"]
[Source "ChessBase"]
[SourceQuality "1"]
[TimeControl "40/5400+30:1800+30"]

1. d4 {[%emt 0:00:03]} Nf6 {[%emt 0:00:03]} 2. c4 {[%emt 0:00:06]} g6 {[%emt 0:00:02]} 3. g3 {[%emt 0:00:08]} Bg7 {[%emt 0:00:04]} 4. Bg2 {[%emt 0:00:09]} c5 {[%emt 0:00:56]} 5. d5 {[%emt 0:00:17]} b5 {[%emt 0:00:56]} 6. d6 {[%emt 0:04:11]} Nc6 {[%emt 0:18:12]} 7. cxb5 {[%emt 0:00:29]} Qa5+ {[%emt 0:04:57]} 8. Nc3 {[%emt 0:00:10]} exd6 {[%emt 0:10:25]} 9. bxc6 {[%emt 0:00:27]} d5 {[%emt 0:00:04]} 10. cxd7+ {[%emt 0:01:11]} Bxd7 {[%emt 0:00:12]} 11. Bd2 {[%emt 0:01:44]} Qa6 {[%emt 0:03:05]} 12. Nxd5 {[%emt 0:04:35]} Nxd5 {[%emt 0:00:08]} 13. Bxd5 {[%emt 0:00:06]} Rd8 {[%emt 0:00:06]} 14. Qc2 {[%emt 0:05:39]} O-O {[%emt 0:10:37]} 15. Bc3 {[%emt 0:05:43]} Bf5 {[%emt 0:01:10]} 16. Be4 {[%emt 0:00:35]} Bxe4 {[%emt 0:01:22]} 17. Qxe4 {[%emt 0:00:08]} Rfe8 {[%emt 0:01:46]} 18. Qc2 {[%emt 0:00:27]} Qc4 {[%emt 0:24:50]} 19. Qb3 {[%emt 0:05:48]} Qe4 {[%emt 0:07:15]} 20. f3 {[%emt 0:00:12]} Qe7 {[%emt 0:01:53]} 21. Bxg7 {[%emt 0:00:12]} Kxg7 {[%emt 0:00:02]} 22. Rd1 {[%emt 0:02:13]} Kf8 {[%emt 0:04:56]} 23. Rxd8 {[%emt 0:00:51]} Qxd8 {[%emt 0:00:16]} 24. Qc3 {[%emt 0:00:13]} Qd5 {[%emt 0:01:02]} 25. a3 {[%emt 0:03:01]} Rd8 {[%emt 0:00:52]} 26. Qc2 {[%emt 0:01:29]} Qa2 {[%emt 0:02:06]} 27. Qc1 {[%emt 0:04:07]} Rb8 {[%emt 0:01:12]} 28. Qxc5+ {[%emt 0:02:03]} Kg8 {[%emt 0:00:08]} 29. Qxa7 {[%emt 0:16:56]} Rxb2 {[%emt 0:01:13]} 30. Kf2 {[%emt 0:00:09]} Rb1 {[%emt 0:01:25]} 31. Kg2 {[%emt 0:00:11]} Qe6 {[%emt 0:01:39]} 32. Nh3 {[%emt 0:03:57]} Rxh1 {[%emt 0:02:11]} 33. Kxh1 {[%emt 0:00:59]} Qxh3 {[%emt 0:00:07]} 34. Kg1 {[%emt 0:00:09]} Qe6 {[%emt 0:00:20]} 35. Qa8+ {[%emt 0:00:43]} Kg7 {[%emt 0:00:06]} 36. Qe4 {[%emt 0:00:29]} Qb3 {[%emt 0:00:29]} 37. a4 {[%emt 0:00:08]} Qd1+ {[%emt 0:00:40]} 38. Kg2 {[%emt 0:00:08]} Qe1 {[%emt 0:00:09]} 39. Qe5+ {[%emt 0:00:19]} f6 {[%emt 0:00:18]} 40. Qb5 {[%emt 0:00:13]} h5 {[%emt 0:00:35]} 41. h4 {[%emt 0:32:42]} Kh6 {[%emt 0:15:37]} 42. f4 {[%emt 0:00:00]} Qd2 {[%emt 0:02:56]} 43. a5 {[%emt 0:00:00]} Qe3 {[%emt 0:00:07]} 44. Qc4 {[%emt 0:00:00]} g5 {[%emt 0:03:44]} 45. fxg5+ {[%emt 0:00:00]} fxg5 {[%emt 0:00:49]} 46. hxg5+ {[%emt 0:00:00]} Kg7 {[%emt 0:00:08]} 47. g6 {[%emt 0:00:00]} Kh8 {[%emt 0:05:51]} 48. Qc8+ {[%emt 0:00:00]} Kg7 {[%emt 0:00:06]} 49. Qd7+ {[%emt 0:00:00]} Kh6 {[%emt 0:00:20]} 50. Qd3 {[%emt 0:00:02]} Qc5 {[%emt 0:00:58]} 51. a6 {[%emt 0:07:16]} Qc6+ {[%emt 0:00:12]} 52. Kh2 {[%emt 0:06:02]} Qb6 {[%emt 0:00:58]} 53. Kg2 {[%emt 0:00:55]} Qc6+ {[%emt 0:00:06]} 54. Kf2 {[%emt 0:04:30]} Qf6+ {[%emt 0:00:19]} 55. Ke1 {[%emt 0:06:01]} Qa1+ {[%emt 0:00:26]} 56. Kd2 {[%emt 0:00:06]} Qa5+ {[%emt 0:01:00]} 57. Ke3 {[%emt 0:00:16]} Qb6+ {[%emt 0:00:41]} 58. Qd4 {[%emt 0:18:49]} Qxa6 {[%emt 0:01:53]} 59. g7 {[%emt 0:00:10]} Qe6+ {[%emt 0:00:41]} 60. Kf3 {[%emt 0:00:50]} Qa2 {[%emt 0:02:05]} 61. Qf6+ {[%emt 0:01:07]} Kh7 {[%emt 0:00:37]} 62. Qe7 {[%emt 0:01:24]} Qb3+ {[%emt 0:01:26]} 63. Kf2 {[%emt 0:00:28]} Qb6+ {[%emt 0:00:21]} 64. Kf3 {[%emt 0:00:33]} Qb3+ {[%emt 0:00:56]} 65. Kf4 {[%emt 0:00:24]} Qb8+ {[%emt 0:00:22]} 66. Qe5 {[%emt 0:00:43]} Qa7 {[%emt 0:02:02]} 67. Kg5 {[%emt 0:00:20]} Qa6 {[%emt 0:00:59]} 68. Kxh5 {[%emt 0:00:39]} Qh6+ {[%emt 0:00:29]} 69. Kg4 {[%emt 0:00:08]} Qg6+ {[%emt 0:00:04]} 70. Kh4 {[%emt 0:00:18]} Qa6 {[%emt 0:00:55]} 71. Qg5 {[%emt 0:00:33]} Qc4+ {[%emt 0:00:30]} 72. Qg4 {[%emt 0:00:35]} Qg8 {[%emt 0:00:25]} 73. Qh5+ {[%emt 0:00:06]} 1-0

[Event "LEM Niedersachsen-A-Open 2025"]
[Site "Verden"]
[Date "2025.01.02"]
[Round "1.13"]
[White "Ophardt, Paul"]
[Black "Moerke, Niklas"]
[Result "1/2-1/2"]
[ECO "D35"]
[WhiteElo "2015"]
[BlackElo "1875"]
[Annotator "RC"]
[PlyCount "40"]
[EventDate "2024.12.27"]
[EventType "swiss"]
[EventCountry "GER"]
[SourceTitle "playchess.com"]
[Source "ChessBase"]
[SourceQuality "1"]
[TimeControl "40/5400+30:1800+30"]

1. d4 {[%emt 0:00:04]} d5 {[%emt 0:00:09]} 2. c4 {[%emt 0:00:57]} e6 {[%emt 0:01:33]} 3. Nc3 {[%emt 0:00:15]} Nf6 {[%emt 0:00:20]} 4. cxd5 {[%emt 0:00:28]} Nxd5 {[%emt 0:01:30]} 5. e4 {[%emt 0:00:29]} Nxc3 {[%emt 0:00:05]} 6. bxc3 {[%emt 0:00:06]} c5 {[%emt 0:00:04]} 7. Rb1 {[%emt 0:02:10]} cxd4 {[%emt 0:02:02]} 8. cxd4 {[%emt 0:00:14]} Nc6 {[%emt 0:02:25]} 9. Bb5 {[%emt 0:03:38]} Bd7 {[%emt 0:03:24]} 10. Nf3 {[%emt 0:10:56]} a6 {[%emt 0:04:24]} 11. Be2 {[%emt 0:05:14]} b5 {[%emt 0:06:51]} 12. O-O {[%emt 0:04:30]} Be7 {[%emt 0:01:55]} 13. d5 {[%emt 0:10:18]} exd5 {[%emt 0:03:12]} 14. exd5 {[%emt 0:00:18]} Bf5 {[%emt 0:02:02]} 15. Rb2 {[%emt 0:06:26]} Na5 {[%emt 0:03:19]} 16. Rd2 {[%emt 0:08:44]} Bd6 {[%emt 0:05:06]} 17. Bb2 {[%emt 0:04:20]} O-O {[%emt 0:00:44]} 18. Qa1 {[%emt 0:01:55]} f6 {[%emt 0:00:59]} 19. Rfd1 {[%emt 0:03:28]} Qe7 {[%emt 0:09:26]} 20. Re1 {[%emt 0:03:20]} Qc7 {[%emt 0:03:17]} 1/2-1/2

[Event "LEM Niedersachsen-A-Open 2025"]
[Site "Verden"]
[Date "2025.01.02"]
[Round "1.14"]
[White "Lehmkuhl, Stefan"]
[Black "Kieselbach, Marvin"]
[Result "0-1"]
[ECO "E48"]
[WhiteElo "1874"]
[BlackElo "2008"]
[Annotator "RC"]
[PlyCount "72"]
[EventDate "2024.12.27"]
[EventType "swiss"]
[EventCountry "GER"]
[SourceTitle "playchess.com"]
[Source "ChessBase"]
[SourceQuality "1"]
[TimeControl "40/5400+30:1800+30"]

1. d4 {[%emt 0:00:09]} Nf6 {[%emt 0:00:09]} 2. c4 {[%emt 0:00:30]} e6 {[%emt 0:00:06]} 3. Nc3 {[%emt 0:01:10]} Bb4 {[%emt 0:00:09]} 4. e3 {[%emt 0:00:47]} O-O {[%emt 0:00:17]} 5. Bd3 {[%emt 0:00:28]} Re8 {[%emt 0:00:35]} 6. Nge2 {[%emt 0:00:27]} d5 {[%emt 0:00:23]} 7. a3 {[%emt 0:00:40]} Bd6 {[%emt 0:01:20]} 8. h3 {[%emt 0:02:14]} Nbd7 {[%emt 0:00:28]} 9. O-O {[%emt 0:01:32]} dxc4 {[%emt 0:06:16]} 10. Bxc4 {[%emt 0:00:17]} e5 {[%emt 0:06:53]} 11. Nb5 {[%emt 0:02:01]} Be7 {[%emt 0:03:26]} 12. Bd2 {[%emt 0:03:24]} a6 {[%emt 0:01:42]} 13. Nbc3 {[%emt 0:00:10]} exd4 {[%emt 0:00:18]} 14. exd4 {[%emt 0:01:30]} Nb6 {[%emt 0:02:18]} 15. Ba2 {[%emt 0:00:37]} c6 {[%emt 0:05:54]} 16. Rc1 {[%emt 0:02:11]} Nfd5 {[%emt 0:05:31]} 17. Nxd5 {[%emt 0:03:33]} Nxd5 {[%emt 0:00:10]} 18. Nc3 {[%emt 0:00:38]} Be6 {[%emt 0:01:27]} 19. Qf3 {[%emt 0:02:24]} Bf6 {[%emt 0:10:36]} 20. Nxd5 {[%emt 0:00:45]} Bxd5 {[%emt 0:00:12]} 21. Bxd5 {[%emt 0:00:20]} Qxd5 {[%emt 0:00:07]} 22. Qxd5 {[%emt 0:00:21]} cxd5 {[%emt 0:00:01]} 23. Be3 {[%emt 0:00:22]} Rac8 {[%emt 0:01:17]} 24. Rfd1 {[%emt 0:00:58]} Kf8 {[%emt 0:00:45]} 25. Kf1 {[%emt 0:00:16]} h5 {[%emt 0:04:08]} 26. Rxc8 {[%emt 0:01:29]} Rxc8 {[%emt 0:00:02]} 27. Ke2 {[%emt 0:00:16]} Ke7 {[%emt 0:03:21]} 28. Kd3 {[%emt 0:00:37]} Ke6 {[%emt 0:03:19]} 29. Rc1 {[%emt 0:02:24]} Rxc1 {[%emt 0:00:57]} 30. Bxc1 {[%emt 0:00:09]} Kf5 {[%emt 0:00:28]} 31. g3 {[%emt 0:04:11]} Be7 {[%emt 0:01:32]} 32. f3 {[%emt 0:02:51]} Bd6 {[%emt 0:03:02]} 33. g4+ {[%emt 0:00:42]} Kg6 {[%emt 0:00:35]} 34. Be3 {[%emt 0:05:07]} Bg3 {[%emt 0:01:31]} 35. f4 {[%emt 0:04:27]} hxg4 {[%emt 0:01:14]} 36. hxg4 {[%emt 0:00:12]} f5 {[%emt 0:00:09]} 0-1

[Event "LEM Niedersachsen-A-Open 2025"]
[Site "Verden"]
[Date "2025.01.02"]
[Round "1.15"]
[White "Martin, Dennis"]
[Black "Gehrke, Mathias"]
[Result "0-1"]
[ECO "A56"]
[WhiteElo "2005"]
[BlackElo "1873"]
[Annotator "NA RC"]
[PlyCount "90"]
[EventDate "2024.12.27"]
[EventType "swiss"]
[EventCountry "GER"]
[SourceTitle "playchess.com"]
[Source "ChessBase"]
[SourceQuality "1"]
[TimeControl "40/5400+30:1800+30"]

1. d4 {[%emt 0:00:03]} Nf6 {[%emt 0:00:13]} 2. c4 {[%emt 0:00:01]} c5 {[%emt 0:00:31]} 3. dxc5 {[%emt 0:00:05]} Qa5+ {[%emt 0:01:37]} 4. Nc3 {[%emt 0:00:04]} Qxc5 {[%emt 0:03:18]} 5. e4 {[%emt 0:00:03]} d6 {[%emt 0:04:03]} 6. Be3 {[%emt 0:00:15] A56: Czech Benoni.} Qa5 {[%emt 0:04:39]} 7. f3 {[%emt 0:00:32]} g6 {[%emt 0:02:18]} 8. Nge2 {[%emt 0:01:16]} Bg7 {[%emt 0:02:03]} 9. a3 {[%emt 0:01:18]} Nbd7 {[%emt 0:08:51]} 10. Qd2 {[%emt 0:09:35]} O-O {[%emt 0:03:45]} 11. Nf4 {[%emt 0:05:08]} Ne5 {[%emt 0:05:57]} 12. Be2 {[%emt 0:03:09]} Be6 {[%emt 0:07:33]} 13. Nxe6 {[%emt 0:02:38]} fxe6 {[%emt 0:00:02]} 14. Nb5 {[%emt 0:01:00]} (14. b4 $16 Qd8 15. O-O) 14... Qd8 {[%emt 0:02:26]} 15. Bxa7 {[%emt 0:00:46]} b6 {[%emt 0:04:35]} 16. Qe3 {[%emt 0:00:58]} Nfd7 {[%emt 0:00:23]} 17. Nd4 {[%emt 0:01:42]} Rxa7 {[%emt 0:05:58]} 18. Nxe6 {[%emt 0:00:14]} (18. f4 $142) 18... Qc8 {[%emt 0:00:47]} 19. Nxf8 {[%emt 0:00:05]} Kxf8 {[%emt 0:02:58]} (19... Qxf8) 20. Rc1 {[%emt 0:00:43]} Nf7 {[%emt 0:03:20]} 21. Rc2 {[%emt 0:00:49]} Rc7 {[%emt 0:03:21]} (21... Nd8 $17 22. f4 Qc5) 22. a4 {[%emt 0:00:59]} Qa8 {[%emt 0:01:38]} 23. b3 {[%emt 0:04:00]} Qa5+ {[%emt 0:03:25]} 24. Kf2 {[%emt 0:00:04]} Bh6 {[%emt 0:01:05]} 25. f4 {[%emt 0:01:41]} Nf6 {[%emt 0:08:35]} 26. g3 {[%emt 0:04:39]} Ne5 {[%emt 0:03:37]} 27. Kg2 {[%emt 0:07:06]} Qa8 {[%emt 0:03:06]} 28. Bf3 {[%emt 0:01:29]} Nxf3 {[%emt 0:00:20]} 29. Kxf3 {[%emt 0:00:04]} e6 {[%emt 0:04:21]} 30. Re1 {[%emt 0:00:59]} Qb7 {[%emt 0:02:05]} 31. Qd4 {[%emt 0:04:41]} Ke7 {[%emt 0:02:35]} 32. Rce2 {[%emt 0:02:10]} Bg7 {[%emt 0:00:48]} 33. Qd3 {[%emt 0:00:41]} Qc6 {[%emt 0:00:47]} 34. g4 {[%emt 0:00:54]} Kf7 {[%emt 0:00:24]} 35. Kg3 {[%emt 0:00:34]} h5 {[%emt 0:00:45]} 36. g5 {[%emt 0:00:32]} Nd7 {[%emt 0:00:24]} 37. Qc2 $11 {[%emt 0:01:38]} Nc5 {[%emt 0:00:50]} 38. e5 {[%emt 0:01:00]} d5 {[%emt 0:02:29]} 39. cxd5 {[%emt 0:00:34]} Qxd5 {[%emt 0:00:17]} 40. Re3 {[%emt 0:01:23]} Qb7 {[%emt 0:01:05]} 41. b4 {[%emt 0:34:18]} Na6 {[%emt 0:32:43]} 42. Rc3 {[%emt 0:03:37]} Bf8 {[%emt 0:00:51]} 43. Rxc7+ {[%emt 0:00:29]} Nxc7 {[%emt 0:00:02]} 44. b5 {[%emt 0:03:02]} Bc5 {[%emt 0:00:00]} 45. Qc4 {[%emt 0:00:00]} h4+ {[%emt 0:00:00]} 0-1

[Event "LEM Niedersachsen-A-Open 2025"]
[Site "Verden"]
[Date "2025.01.02"]
[Round "1.16"]
[White "Kozik, Andreas"]
[Black "Loecken, Siegfried"]
[Result "0-1"]
[ECO "A76"]
[WhiteElo "1868"]
[BlackElo "2004"]
[Annotator "RC"]
[PlyCount "108"]
[EventDate "2024.12.27"]
[EventType "swiss"]
[EventCountry "GER"]
[SourceTitle "playchess.com"]
[Source "ChessBase"]
[SourceQuality "1"]
[TimeControl "40/5400+30:1800+30"]

1. d4 {[%emt 0:00:04]} Nf6 {[%emt 0:00:08]} 2. Nf3 {[%emt 0:00:07]} c5 {[%emt 0:00:05]} 3. d5 {[%emt 0:00:57]} e6 {[%emt 1:31:47]} 4. c4 {[%emt 0:05:35]} exd5 {[%emt 0:00:00]} 5. cxd5 {[%emt 0:00:29]} d6 {[%emt 0:00:00]} 6. Nc3 {[%emt 0:02:47]} g6 {[%emt 0:00:00]} 7. e4 {[%emt 0:04:31]} Bg7 {[%emt 0:00:00]} 8. Be2 {[%emt 0:00:48]} O-O {[%emt 0:00:00]} 9. O-O {[%emt 0:00:27]} Re8 {[%emt 0:00:00]} 10. Qc2 {[%emt 0:01:31]} a6 {[%emt 0:00:00]} 11. a4 {[%emt 0:02:16]} Nbd7 {[%emt 0:00:00]} 12. Re1 {[%emt 0:02:22]} Qc7 {[%emt 0:00:00]} 13. h3 {[%emt 0:05:49]} Rb8 {[%emt 0:00:00]} 14. a5 {[%emt 0:04:52]} b5 {[%emt 0:00:00]} 15. axb6 {[%emt 0:00:22]} Rxb6 {[%emt 0:00:00]} 16. Bf1 {[%emt 0:09:02]} h6 {[%emt 0:00:00]} 17. Nd2 {[%emt 0:02:33]} g5 {[%emt 0:00:00]} 18. Nc4 {[%emt 0:13:34]} Rb4 {[%emt 0:00:00]} 19. Na2 {[%emt 0:06:16]} Rb8 {[%emt 0:00:00]} 20. Bd2 {[%emt 0:04:23]} Ne5 {[%emt 0:00:00]} 21. Nxe5 {[%emt 0:10:55]} Rxe5 {[%emt 0:00:00]} 22. Nc3 {[%emt 0:08:55]} Qb6 {[%emt 0:00:00]} 23. Ra2 {[%emt 0:05:40]} Re8 {[%emt 0:00:00]} 24. Bc4 {[%emt 0:01:39]} g4 {[%emt 0:00:00]} 25. hxg4 {[%emt 0:02:20]} Nxg4 {[%emt 0:00:00]} 26. f3 {[%emt 0:00:09]} Bd4+ {[%emt 0:00:00]} 27. Kf1 {[%emt 0:00:58]} Ne5 {[%emt 0:00:00]} 28. Na4 {[%emt 0:02:18]} Qd8 {[%emt 0:00:00]} 29. Bxh6 {[%emt 0:00:30]} Qh4 {[%emt 0:00:00]} 30. Be3 {[%emt 0:00:10]} Nxc4 {[%emt 0:00:00]} 31. Qxc4 {[%emt 0:00:08]} Bd7 {[%emt 0:00:00]} 32. Nc3 {[%emt 0:01:32]} Rb4 {[%emt 0:00:00]} 33. Qd3 {[%emt 0:00:58]} Reb8 {[%emt 0:00:00]} 34. Bxd4 {[%emt 0:01:17]} cxd4 {[%emt 0:00:00]} 35. Ne2 {[%emt 0:00:03]} Bb5 {[%emt 0:00:00]} 36. Qd2 {[%emt 0:00:10]} Bc4 {[%emt 0:00:00]} 37. b3 {[%emt 0:00:53]} Rxb3 {[%emt 0:00:00]} 38. Qxd4 {[%emt 0:00:23]} R3b4 {[%emt 0:00:00]} 39. Qd2 {[%emt 0:00:54]} Bxa2 {[%emt 0:00:00]} 40. Qxa2 {[%emt 0:00:08]} R8b6 {[%emt 0:00:00]} 41. Qc2 {[%emt 0:03:17]} a5 {[%emt 0:00:00]} 42. Qc8+ {[%emt 0:02:58]} Kg7 {[%emt 0:00:00]} 43. Qc3+ {[%emt 0:00:21]} Qf6 {[%emt 0:00:00]} 44. Qc2 {[%emt 0:03:34]} Rb2 {[%emt 0:00:00]} 45. Qc8 {[%emt 0:00:36]} a4 {[%emt 0:05:36]} 46. Ng3 {[%emt 0:00:42]} Qg5 {[%emt 0:03:22]} 47. Nf5+ {[%emt 0:06:37]} Kh7 {[%emt 0:00:46]} 48. Ne3 {[%emt 0:00:13]} a3 {[%emt 0:06:39]} 49. Qh3+ {[%emt 0:10:10]} Kg8 {[%emt 0:01:09]} 50. Qc8+ {[%emt 0:00:12]} Kg7 {[%emt 0:02:49]} 51. Qc3+ {[%emt 0:02:12]} Kh7 {[%emt 0:00:33]} 52. Ng4 {[%emt 0:03:24]} Qh4 {[%emt 0:02:41]} 53. Kg1 {[%emt 0:02:34]} Qxe1+ {[%emt 0:00:15]} 54. Qxe1 {[%emt 0:00:09]} Rb1 {[%emt 0:00:07]} 0-1